[Event "Norm Congress-IM 2019"]
[Site "Saint Louis"]
[Date "2019.05.19"]
[Round "6.4"]
[White "Grabinsky, Aaron"]
[Black "Rosen, Eric"]
[Result "1-0"]
[ECO "B40"]
[WhiteElo "2338"]
[BlackElo "2338"]
[Annotator "RC"]
[PlyCount "139"]
[EventDate "2019.05.16"]
[EventType "tourn"]
[EventCountry "USA"]
[SourceTitle "playchess.com"]
[Source "ChessBase"]
[SourceQuality "1"]
[TimeControl "5400+30"]

1. e4 {[%emt 0:00:00]} c5 {[%emt 0:00:00]} 2. Nf3 {[%emt 0:00:00]} e6 {[%emt 0:00:00]} 3. b3 {[%emt 0:00:00]} b6 {[%emt 0:00:15]} 4. Bd3 {[%emt 0:00:00]} Bb7 {[%emt 0:01:16]} 5. O-O {[%emt 0:00:08]} Ne7 {[%emt 0:01:20]} 6. Bb2 {[%emt 0:00:38]} Ng6 {[%emt 0:01:07]} 7. c4 {[%emt 0:01:25]} Nc6 {[%emt 0:01:07]} 8. Re1 {[%emt 0:03:06]} Bd6 {[%emt 0:03:22]} 9. Na3 {[%emt 0:05:20]} Nce5 {[%emt 0:04:48]} 10. Bf1 {[%emt 0:03:06]} Nxf3+ {[%emt 0:02:56]} 11. Qxf3 {[%emt 0:00:34]} Qg5 {[%emt 0:07:27]} 12. d4 {[%emt 0:05:27]} O-O {[%emt 0:08:22]} 13. d5 {[%emt 0:03:45]} Rae8 {[%emt 0:01:30]} 14. Nb5 {[%emt 0:04:54]} Bb8 {[%emt 0:01:03]} 15. Qc3 {[%emt 0:01:13]} Qh6 {[%emt 0:06:09]} 16. g3 {[%emt 0:03:28]} a6 {[%emt 0:00:36]} 17. Na3 {[%emt 0:00:06]} Be5 {[%emt 0:11:40]} 18. Qc2 {[%emt 0:00:07]} f5 {[%emt 0:02:17]} 19. exf5 {[%emt 0:05:10]} Bxb2 {[%emt 0:01:35]} 20. Qxb2 {[%emt 0:00:26]} Rxf5 {[%emt 0:00:17]} 21. Bg2 {[%emt 0:03:52]} Ref8 {[%emt 0:01:47]} 22. f4 {[%emt 0:02:48]} exd5 {[%emt 0:03:20]} 23. Nc2 {[%emt 0:02:31]} R5f7 {[%emt 0:04:54]} 24. Ne3 {[%emt 0:01:22]} Ne7 {[%emt 0:01:52]} 25. Rad1 {[%emt 0:04:19]} Qg6 {[%emt 0:02:39]} 26. Qd2 {[%emt 0:08:06]} d4 {[%emt 0:03:46]} 27. Bxb7 {[%emt 0:01:10]} dxe3 {[%emt 0:00:42]} 28. Rxe3 {[%emt 0:02:08]} Nf5 {[%emt 0:04:02]} 29. Ree1 {[%emt 0:05:00]} Kh8 {[%emt 0:02:47]} 30. Bd5 {[%emt 0:01:17]} Rf6 {[%emt 0:02:43]} 31. Be4 {[%emt 0:00:11]} d6 {[%emt 0:02:58]} 32. Qd5 {[%emt 0:00:41]} h6 {[%emt 0:03:04]} 33. Bxf5 {[%emt 0:01:36]} Rxf5 {[%emt 0:00:40]} 34. Qxd6 {[%emt 0:00:06]} R5f6 {[%emt 0:03:58]} 35. Qd3 {[%emt 0:00:09]} Qxd3 {[%emt 0:01:38]} 36. Rxd3 {[%emt 0:00:08]} R8f7 {[%emt 0:00:18]} 37. Rd5 {[%emt 0:00:35]} Kh7 {[%emt 0:00:19]} 38. Ree5 {[%emt 0:00:18]} Rc6 {[%emt 0:01:57]} 39. Kg2 {[%emt 0:00:54]} Rcf6 {[%emt 0:00:37]} 40. h4 {[%emt 0:00:17]} g6 {[%emt 0:02:08]} 41. h5 {[%emt 0:00:44]} gxh5 {[%emt 0:01:46]} 42. Rxh5 {[%emt 0:00:25]} Rg7 {[%emt 0:00:21]} 43. Kf3 {[%emt 0:01:12]} Rfg6 {[%emt 0:00:32]} 44. Rdg5 {[%emt 0:00:24]} a5 {[%emt 0:05:13]} 45. a4 {[%emt 0:01:29]} Rd6 {[%emt 0:00:47]} 46. Rxg7+ {[%emt 0:00:45]} Kxg7 {[%emt 0:00:02]} 47. Rd5 {[%emt 0:00:33]} Rc6 {[%emt 0:01:01]} 48. g4 {[%emt 0:02:27]} Kf6 {[%emt 0:00:18]} 49. Rh5 {[%emt 0:01:16]} Kg6 {[%emt 0:00:11]} 50. Rd5 {[%emt 0:01:18]} Kf6 {[%emt 0:00:05]} 51. Kg3 {[%emt 0:00:28]} Re6 {[%emt 0:01:21]} 52. Kh4 {[%emt 0:00:28]} Re4 {[%emt 0:00:33]} 53. Rd6+ {[%emt 0:01:25]} Ke7 {[%emt 0:00:28]} 54. Rxh6 {[%emt 0:00:13]} Rxf4 {[%emt 0:00:04]} 55. Rxb6 {[%emt 0:00:06]} Kf7 {[%emt 0:00:39]} 56. Rb5 {[%emt 0:00:31]} Rf3 {[%emt 0:00:37]} 57. Rxa5 {[%emt 0:00:36]} Rxb3 {[%emt 0:00:07]} 58. Rxc5 {[%emt 0:00:06]} Ra3 {[%emt 0:00:27]} 59. a5 {[%emt 0:00:07]} Kf6 {[%emt 0:00:16]} 60. g5+ {[%emt 0:00:13]} Kg6 {[%emt 0:00:23]} 61. Kg4 {[%emt 0:00:19]} Rc3 {[%emt 0:01:04]} 62. Rc6+ {[%emt 0:00:13]} Kf7 {[%emt 0:00:05]} 63. a6 {[%emt 0:00:06]} Ra3 {[%emt 0:00:03]} 64. Kf5 {[%emt 0:00:27]} Ke7 {[%emt 0:00:48]} 65. g6 {[%emt 0:00:28]} Ra5+ {[%emt 0:01:03]} 66. Kf4 {[%emt 0:00:33]} Kd7 {[%emt 0:00:34]} 67. g7 {[%emt 0:00:56]} Kxc6 {[%emt 0:00:04]} 68. g8=Q {[%emt 0:00:08]} Rxa6 {[%emt 0:00:02]} 69. Qc8+ {[%emt 0:00:13]} Kb6 {[%emt 0:00:09]} 70. Qb8+ {[%emt 0:00:10]} 1-0